fUST/lending_fUST_20240206
["ID","MTS","AMOUNT","RATE_DAILY","PERIOD"]
[313344133,1707185446500,-199.8298339,0.00021856,2]
[313344134,1707185446511,-153.0,0.00021856,2]
[313344135,1707185446522,-153.0,0.00021856,2]
[313344136,1707185446534,-153.0,0.00021856,2]
[313344137,1707185446546,-153.0,0.00021856,2]
[313344138,1707185446557,-199.8298339,0.00021856,2]
[313344139,1707185446567,-153.0,0.00021856,2]
[313344140,1707185446578,-153.0,0.00021856,2]
[313344141,1707185446590,-153.0,0.00021856,2]
[313344142,1707185446599,-240.668344,0.00021916,2]
[313344143,1707185446612,-166.666666,0.00021918,2]
[313344144,1707185446624,-153.0,0.00021918,2]
[313344145,1707185446635,-199.8298339,0.00021918,2]
[313344146,1707185446648,-199.8298339,0.00021918,2]
[313344147,1707185446659,-199.8298339,0.00021918,2]
[313344148,1707185446671,-3979.85245146,0.00022,2]
[313344149,1707185446683,-293.97440295,0.000222,2]
[313344150,1707185446694,-166.666666,0.00022431,2]
[313344151,1707185446704,-151.0,0.00022565,2]
[313344152,1707185446716,-421.8489279,0.0002274,2]
[313344153,1707185446740,-166.666666,0.00022944,2]
[313344154,1707185446754,-1262.82587862,0.00023,2]
[313344155,1707185446765,-9965.57117868,0.00023,2]
[313344156,1707185446776,-1000.0,0.00023,2]
[313344157,1707185446786,-689.77170832,0.00023,2]
[313344158,1707185446802,-310.22829168,0.00023,2]
[313344159,1707185446819,-97.28112119,0.00023,2]
[313344228,1707186632495,-609.53602629,0.00018402,2]
[313344229,1707186632505,-481.39378056,0.00018403,2]
[313344231,1707186632514,-217.27668132,0.00018411,2]
[313344233,1707186632523,-83908.04614101,0.000185,2]
[313344235,1707186632533,-20951.37484427,0.00018501,2]
[313344237,1707186632542,-2109.23862563,0.00018508,2]
[313344239,1707186632551,-24900.0,0.00018512,2]
[313344240,1707186632561,-315.31131067,0.00018989,2]
[313344242,1707186632570,-160.0011503,0.00019097,2]
[313344243,1707186632580,-169.3808446,0.000192,2]
[313344245,1707186632590,-217.27668132,0.00019636,2]
[313344247,1707186632599,-151.0,0.0001988,2]
[313344248,1707186632607,-574.63589835,0.000199,2]
[313344249,1707186632617,-200.0,0.00020355,2]
[313344250,1707186632626,-217.27668132,0.00020861,2]
[313344251,1707186632639,-2903.96195306,0.00020899,2]
[313344252,1707186632649,-351.75843197,0.00021,2]
[313344253,1707186632658,-151.0,0.00021253,2]
[313344254,1707186632667,-166.666666,0.00021918,2]
[313344255,1707186632676,-217.27668132,0.00022086,2]
[313344256,1707186632687,-315.3113106,0.00022374,2]
[313344257,1707186632696,-280.0,0.00022391,7]
[313344258,1707186632705,-166.666666,0.00022431,2]
[313344259,1707186632715,-151.0,0.00022627,2]
[313344260,1707186632725,-166.666666,0.00022944,2]
[313344261,1707186632733,-1262.82587862,0.00023,2]
[313344262,1707186632743,-6969.37028845,0.00023,2]
[313344263,1707186632757,-2996.20089023,0.00023,2]
[313344264,1707186632766,-171.739649,0.00023,3]
[313344265,1707186632775,-151.0,0.00023,2]
[313344266,1707186632785,-151.0,0.00023,2]
[313344267,1707186632794,-151.0,0.00023,2]
[313344268,1707186632803,-153.319803,0.00023,2]
[313344269,1707186632812,-223.155751,0.00023,2]
[313344270,1707186632822,-223.155751,0.00023,2]
[313344271,1707186632831,-62.18450304,0.00023,2]
[313344272,1707186632843,-160.97124796,0.00023,2]
[313344273,1707186632963,-223.155751,0.00023,2]
[313344274,1707186632973,-223.155751,0.00023,2]
[313344275,1707186632982,-223.155751,0.00023,2]
[313344276,1707186632991,-151.0,0.00023,2]
[313344277,1707186633001,-211.66669857,0.00023,2]
[313344316,1707186638654,-788.33330143,0.00023,2]
[313344317,1707186638666,-1000.0,0.00023,2]
[313344318,1707186638676,-717.09318887,0.00023,2]
[313344319,1707186638689,-282.90681113,0.00023,2]
[313344320,1707186638698,-1000.0,0.00023,2]
[313344321,1707186638707,-868.51565748,0.00023,2]
[313344325,1707186641746,-131.48434252,0.00023,2]
[313344326,1707186641755,-622.0914442,0.00023,2]
[313344327,1707186641800,-377.9085558,0.00023,2]
[313344328,1707186641810,-1000.0,0.00023,2]
[313344329,1707186641820,-1000.0,0.00023,2]
[313344330,1707186641829,-1000.0,0.00023,2]
[313344331,1707186641838,-868.51565748,0.00023,2]
[313344362,1707186646566,-131.48434252,0.00023,2]
[313344363,1707186646577,-1000.0,0.00023,2]
[313344364,1707186646588,-1000.0,0.00023,2]
[313344365,1707186646597,-1000.0,0.00023,2]
[313344366,1707186646607,-1000.0,0.00023,2]
[313344367,1707186646616,-1000.0,0.00023,2]
[313344368,1707186646626,-1000.0,0.00023,2]
[313344369,1707186646636,-1000.0,0.00023,2]
[313344370,1707186646650,-1000.0,0.00023,2]
[313344371,1707186646660,-1000.0,0.00023,2]
[313344372,1707186646670,-1000.0,0.00023,2]
[313344373,1707186646681,-1000.0,0.00023,2]
[313344374,1707186646691,-1000.0,0.00023,2]
[313344375,1707186646700,-1000.0,0.00023,2]
[313344376,1707186646710,-1000.0,0.00023,2]
[313344378,1707186646721,-1000.0,0.00023,2]
[313344380,1707186646731,-1000.0,0.00023,2]
[313344382,1707186646741,-151.0,0.00023,2]
[313344384,1707186646751,-151.0,0.00023,2]
[313344385,1707186646762,-217.27668132,0.00023311,2]
[313344386,1707186646773,-800.67232124,0.00023349,2]
[313344387,1707186646782,-3211.65,0.00023403,3]
[313344388,1707186646791,-332.74852454,0.00023409,2]
[313344389,1707186646800,-310.02752928,0.00023409,2]
[313344390,1707186646810,-383.9656846,0.0002341,2]
[313344391,1707186646820,-491.39304913,0.0002341,2]
[313344392,1707186646829,-3124.00585978,0.0002341,2]
[313344393,1707186646843,-1091.3,0.0002341,2]
[313344394,1707186646855,-4441.9922545,0.0002341,2]
[313344395,1707186646866,-19018.36293866,0.00023411,2]
[313344396,1707186646875,-19891.15775439,0.00023411,2]
[313344397,1707186646884,-3800.62169563,0.00023411,2]
[313344398,1707186646894,-322.28462855,0.00023411,2]
[313344399,1707186646903,-151.0,0.00023411,2]
[313344400,1707186646913,-151.0,0.00023411,2]
[313344401,1707186646924,-223.155751,0.00023411,2]
[313344402,1707186646934,-223.155751,0.00023411,2]
[313344403,1707186646945,-223.155751,0.00023411,2]
[313344404,1707186646955,-223.155751,0.00023411,2]
[313344405,1707186646965,-151.0,0.00023411,2]
[313344406,1707186646974,-151.0,0.00023411,2]
[313344407,1707186646984,-151.0,0.00023411,2]
[313344408,1707186646994,-151.0,0.00023411,2]
[313344409,1707186647003,-426.72198285,0.00023413,2]
[313344410,1707186647013,-523.15721576,0.00023413,2]
[313344411,1707186647022,-657.14661424,0.00023413,2]
[313344412,1707186647031,-155.52453245,0.00023413,2]
[313344413,1707186647040,-155.43332008,0.00023413,2]
[313344414,1707186647050,-155.44977453,0.00023413,2]
[313344415,1707186647059,-155.27886329,0.00023413,2]
[313344416,1707186647069,-787.07298091,0.00023413,2]
[313344417,1707186647078,-37156.35826407,0.00023413,2]
[313344418,1707186647088,-155.26806104,0.00023413,2]
[313344419,1707186647098,-2092.62512705,0.00023413,2]
[313344420,1707186647108,-151.0,0.00023413,2]
[313344421,1707186647118,-223.155751,0.00023413,2]
[313344422,1707186647127,-223.155751,0.00023413,2]
[313344423,1707186647137,-151.0,0.00023413,2]
[313344424,1707186647146,-151.0,0.00023413,2]
[313344425,1707186647155,-19979.95133633,0.00023414,2]
[313344426,1707186647165,-151.0,0.00023414,2]
[313344427,1707186647174,-223.155751,0.00023414,2]
[313344428,1707186647184,-223.155751,0.00023414,2]
[313344429,1707186647193,-151.0,0.00023414,2]
[313344430,1707186647203,-151.0,0.00023414,2]
[313344431,1707186647212,-25266.68577027,0.00023415,2]
[313344432,1707186647222,-3252.21461977,0.00023415,2]
[313344433,1707186647231,-155.02790502,0.00023415,2]
[313344434,1707186647241,-223.155751,0.00023415,2]
[313344435,1707186647251,-223.155751,0.00023415,2]
[313344436,1707186647261,-151.0,0.00023415,2]
[313344437,1707186647270,-243.180136,0.00023415,2]
[313344438,1707186647280,-368.49772843,0.00023422,2]
[313344439,1707186647289,-223.155751,0.00023443,2]
[313344440,1707186647298,-223.155751,0.00023443,2]
[313344441,1707186647308,-151.0,0.00023443,2]
[313344442,1707186647317,-3599.65588513,0.00023446,2]
[313344443,1707186647327,-50000.0,0.00023449,2]
[313344444,1707186647339,-223.155751,0.00023449,2]
[313344445,1707186647348,-223.155755,0.00023449,2]
[313344446,1707186647357,-151.0,0.00023449,2]
[313344447,1707186647366,-332.93687425,0.0002345,2]
[313344448,1707186647376,-500.0,0.0002345,2]
[313344449,1707186647385,-411.15570834,0.0002345,2]
[313344450,1707186647395,-500.0,0.0002345,2]
[313344451,1707186647404,-500.0,0.0002345,2]
[313344452,1707186647413,-500.0,0.0002345,2]
[313344453,1707186647422,-470.91281292,0.0002345,2]
[313344454,1707186647432,-500.0,0.0002345,2]
[313344455,1707186647443,-500.0,0.0002345,2]
[313344456,1707186647453,-500.0,0.0002345,2]
[313344457,1707186647463,-500.0,0.0002345,2]
[313344458,1707186647472,-546.28409256,0.0002345,2]
[313344459,1707186647480,-500.0,0.0002345,2]
[313344460,1707186647489,-500.0,0.0002345,2]
[313344461,1707186647498,-250.38831456,0.0002345,2]
[313344462,1707186647508,-500.0,0.0002345,2]
[313344463,1707186647517,-358.33440764,0.0002345,2]
[313344464,1707186647526,-254.60209125,0.0002345,2]
[313344465,1707186647535,-178.22146388,0.0002345,2]
[313344466,1707186647544,-5000.0,0.00023451,2]
[313344467,1707186647553,-1022.25940367,0.00023451,2]
[313344468,1707186647565,-3977.74059633,0.00023451,2]
[313344469,1707186647574,-3223.74479288,0.00023451,2]
[313344470,1707186647582,-4199.94533115,0.00023451,2]
[313344521,1707187682643,5000.0,0.00029,32]
[313344583,1707187835009,-481.39378056,0.00021292,2]
[313344584,1707187835019,-168.806383,0.00021293,2]
[313344586,1707187835029,-383.0905989,0.00021349,2]
[313344588,1707187835039,-9733.93024827,0.00021451,2]
[313344590,1707187835051,-690.03207318,0.00021451,2]
[313344591,1707187835063,-1430.11707303,0.00021451,2]
[313344592,1707187835076,-4367.6703374,0.00021451,2]
[313344618,1707187841940,-6229.11082892,0.00021451,2]
[313344619,1707187841950,-236.48348295,0.00021818,2]
[313344620,1707187841960,-166.666666,0.00021918,2]
[313344621,1707187841969,-166.666666,0.00022431,2]
[313344622,1707187841978,-166.666666,0.00022944,2]
[313344623,1707187841987,-3567.44869436,0.00023,2]
[313344624,1707187842000,-1219.70498411,0.00023409,2]
[313344625,1707187842009,-500.96663039,0.00023409,2]
[313344626,1707187842018,-21080.39586619,0.00023409,2]
[313344627,1707187842028,-2626.52606125,0.00023438,2]
[313344628,1707187842037,-4356.7,0.0002344,3]
[313344629,1707187842047,-4095.65,0.0002344,3]
[313344630,1707187842056,-3413.04,0.0002344,3]
[313344631,1707187842065,-18156.34294107,0.0002345,2]
[313344632,1707187842074,-800.05466885,0.00023451,2]
[313344633,1707187842084,-166.666666,0.00023456,2]
[313344634,1707187842095,-1336.44198361,0.00023458,2]
[313344635,1707187842104,-1264.66607449,0.00023459,2]
[313344636,1707187842115,-1109.6477077,0.00023459,2]
[313344637,1707187842229,-3888.94409348,0.0002346,2]
[313344638,1707187842248,-503.01188397,0.0002346,2]
[313344661,1707187843773,-497.0012531,0.0002346,2]
[313344662,1707187843785,-111.04276945,0.0002346,2]
[313344663,1707187843795,-305.71318396,0.0002346,2]
[313344664,1707187843827,-456.56140011,0.0002346,2]
[313344824,1707189032010,-481.39378056,0.00021359,2]
[313344827,1707189032024,-441.39787987,0.0002136,2]
[313344829,1707189032033,-166.666666,0.00021918,2]
[313344830,1707189032043,-194.555277,0.00022092,2]
[313344831,1707189032053,-3781.59259595,0.00022137,2]
[313344833,1707189032065,-5880.12133635,0.00022137,2]
[313344835,1707189032075,-863.94110288,0.00022319,2]
[313344837,1707189032084,-166.666666,0.00022453,2]
[313344839,1707189032093,-401.549583,0.00022678,2]
[313344841,1707189032102,-166.666666,0.00022988,2]
[313344843,1707189032111,-183.28318696,0.00023358,2]
[313344844,1707189032120,-150.62,0.00023359,2]
[313344846,1707189032130,-206.92304759,0.0002336,2]
[313344848,1707189032139,-176.24898567,0.00023408,2]
[313344850,1707189032148,-632.19705514,0.00023435,2]
[313344851,1707189032158,-3328.650062,0.00023459,2]
[313344852,1707189032167,-2645.72262964,0.0002346,2]
[313344862,1707189041130,-151.70386427,0.00023386,2]
[313344863,1707189041140,-664.82546809,0.0002346,2]
[313344864,1707189041149,-155.0341075,0.0002346,2]
[313344865,1707189041159,-3252.59212443,0.0002346,2]
[313344866,1707189041168,-663.58357468,0.00023477,2]
[313344903,1707189042944,-2637.88992488,0.00023477,2]
[313344904,1707189042956,-2362.11007512,0.00023477,2]
[313344905,1707189042965,-5000.0,0.00023477,2]
[313344906,1707189042974,-15287.76506953,0.00023483,2]
[313344907,1707189042983,-5000.0,0.00023486,2]
[313344908,1707189042992,-1513.66,0.00023489,3]
[313344909,1707189043001,-2591.92,0.00023489,3]
[313344910,1707189043010,-7807.46188667,0.00023499,2]
[313344911,1707189043020,-5000.0,0.00023499,2]
[313344912,1707189043029,-594.01422842,0.00023499,2]
[313344913,1707189043037,-1936.48401631,0.00023502,2]
[313344914,1707189043046,-4383.63812703,0.00023505,2]
[313344915,1707189043055,-5000.0,0.00023505,2]
[313344916,1707189043065,-5000.0,0.00023505,2]
[313344917,1707189043074,-166.666666,0.00023524,2]
[313344918,1707189043084,-153.0,0.00023678,2]
[313344919,1707189043093,-166.666666,0.00024059,2]
[313344920,1707189043102,-200.0,0.0002435,7]
[313344921,1707189043111,-166.666666,0.00024594,2]
[313344922,1707189043121,-620.60985276,0.00024607,2]
[313344923,1707189043131,-2159.94,0.00024648,3]
[313344924,1707189043141,-200.0,0.00024658,2]
[313344925,1707189043150,-222.3917956,0.00024658,2]
[313344926,1707189043159,-1083.32,0.00024797,2]
[313344927,1707189043168,-1083.32,0.00024797,2]
[313344928,1707189043177,-1083.32,0.00024797,2]
[313344929,1707189043187,-1083.32,0.00024797,2]
[313344930,1707189043196,-1083.32,0.00024797,2]
[313344931,1707189043205,-1083.32,0.00024797,2]
[313344932,1707189043214,-1083.32,0.00024797,2]
[313344933,1707189043226,-1083.32,0.00024797,2]
[313344934,1707189043236,-1083.32,0.00024797,2]
[313344935,1707189043246,-1083.32,0.00024797,2]
[313344936,1707189043254,-1083.32,0.00024797,2]
[313344937,1707189043263,-1083.32,0.00024797,2]
[313344938,1707189043272,-1083.32,0.00024797,2]
[313344939,1707189043281,-1083.32,0.00024797,2]
[313344940,1707189043290,-1083.32,0.00024797,2]
[313344941,1707189043299,-1083.32,0.00024797,2]
[313344942,1707189043310,-1083.32,0.00024797,2]
[313344943,1707189043332,-1083.32,0.00024797,2]
[313344944,1707189043343,-1083.32,0.00024797,2]
[313344945,1707189043352,-1083.32,0.00024797,2]
[313344946,1707189043363,-1083.32,0.00024797,2]
[313344947,1707189043373,-1083.32,0.00024797,2]
[313344948,1707189043383,-1083.32,0.00024797,2]
[313344949,1707189043393,-1083.32,0.00024797,2]
[313344950,1707189043403,-1083.32,0.00024797,2]
[313344951,1707189043413,-1083.32,0.00024797,2]
[313344952,1707189043423,-1083.32,0.00024797,2]
[313344953,1707189043433,-1083.32,0.00024797,2]
[313344954,1707189043443,-1083.32,0.00024797,2]
[313344955,1707189043452,-1083.32,0.00024797,2]
[313344956,1707189043462,-1083.32,0.00024797,2]
[313344957,1707189043471,-1083.32,0.00024797,2]
[313344958,1707189043481,-1083.32,0.00024797,2]
[313344959,1707189043491,-1083.32,0.00024797,2]
[313344960,1707189043502,-1083.32,0.00024797,2]
[313344961,1707189043511,-1083.32,0.00024797,2]
[313344962,1707189043522,-1083.32,0.00024797,2]
[313344963,1707189043532,-1083.32,0.00024797,2]
[313344964,1707189043542,-1083.32,0.00024797,2]
[313344965,1707189043552,-1083.32,0.00024797,2]
[313344966,1707189043561,-1083.32,0.00024797,2]
[313344967,1707189043571,-1083.32,0.00024797,2]
[313344968,1707189043581,-1083.32,0.00024797,2]
[313344969,1707189043590,-1083.32,0.00024797,2]
[313344970,1707189043600,-1083.32,0.00024797,2]
[313344971,1707189043610,-1083.32,0.00024797,2]
[313344972,1707189043620,-1083.32,0.00024797,2]
[313344973,1707189043630,-1083.32,0.00024797,2]
[313344974,1707189043639,-1083.32,0.00024797,2]
[313344975,1707189043649,-1083.32,0.00024797,2]
[313344976,1707189043660,-1083.32,0.00024797,2]
[313344977,1707189043670,-1083.32,0.00024797,2]
[313344978,1707189043679,-1083.32,0.00024797,2]
[313344979,1707189043689,-1083.32,0.00024797,2]
[313344980,1707189043699,-1083.32,0.00024797,2]
[313344981,1707189043708,-1083.32,0.00024797,2]
[313344982,1707189043718,-1083.32,0.00024797,2]
[313344983,1707189043728,-1083.32,0.00024797,2]
[313344984,1707189043737,-1083.32,0.00024797,2]
[313344985,1707189043747,-1083.32,0.00024797,2]
[313344986,1707189043756,-1083.32,0.00024797,2]
[313344987,1707189043766,-1083.32,0.00024797,2]
[313344988,1707189043775,-1083.32,0.00024797,2]
[313344989,1707189043785,-1083.32,0.00024797,2]
[313344990,1707189043794,-1083.32,0.00024797,2]
[313344991,1707189043804,-1083.32,0.00024797,2]
[313344992,1707189043813,-1083.32,0.00024797,2]
[313344993,1707189043823,-1083.32,0.00024797,2]
[313344994,1707189043832,-1083.32,0.00024797,2]
[313344995,1707189043842,-1083.32,0.00024797,2]
[313344996,1707189043964,-1083.32,0.00024797,2]
[313344997,1707189043973,-1083.32,0.00024797,2]
[313344998,1707189043982,-1083.32,0.00024797,2]
[313344999,1707189043991,-287.80899584,0.00024799,2]
[313345000,1707189044002,-233.05581198,0.00024799,2]
[313345001,1707189044013,-230.15438827,0.00024799,2]
[313345002,1707189044022,-500.0,0.00024799,2]
[313345003,1707189044032,-425.03669347,0.00024799,2]
[313345010,1707189046025,-74.96330653,0.00024799,2]
[313345011,1707189046035,-500.0,0.00024799,2]
[313345012,1707189046044,-500.0,0.00024799,2]
[313345013,1707189046054,-428.07191054,0.00024799,2]
[313345178,1707190232091,-260.97438823,0.00022018,2]
[313345179,1707190232101,-319.83166051,0.00022018,2]
[313345252,1707190238174,-155.02015262,0.00022017,2]
[313345253,1707190238183,-6.52151023,0.00022018,2]
[313345254,1707190238193,-309.40152403,0.00022018,2]
[313345255,1707190238205,-171.99225653,0.00022018,2]
[313345256,1707190238214,-184.024594,0.00022032,2]
[313345257,1707190238223,-156.56638829,0.00022318,2]
[313345258,1707190238232,-610.94225641,0.00022318,2]
[313345261,1707190238281,-381.49579894,0.00022318,2]
[313345262,1707190238291,-418.26801809,0.00022697,2]
[313345263,1707190238301,-183.28318696,0.00023426,2]
[313345264,1707190238310,-201.56969712,0.00023427,2]
[313345266,1707190238320,-2592.82331226,0.0002346,2]
[313345267,1707190238329,-308.24892681,0.0002346,2]
[313345269,1707190238338,-5000.0,0.00023505,2]
[313345270,1707190238348,-5990.78262175,0.00023524,2]
[313345271,1707190238357,-5000.0,0.00023527,2]
[313345272,1707190238367,-987.77659335,0.00023527,2]
[313345273,1707190238377,-5000.0,0.00023531,2]
[313345274,1707190238386,-1095.90953176,0.00023531,2]
[313345275,1707190238396,-184.024594,0.00023534,2]
[313345276,1707190238406,-1111.04,0.0002469,3]
[313345277,1707190238415,-2118.67,0.0002469,3]
[313345278,1707190238424,-177.0516,0.00024698,2]
[313345279,1707190238433,-500.0,0.00024699,2]
[313345280,1707190238443,-500.0,0.00024699,2]
[313345281,1707190238452,-500.0,0.00024699,2]
[313345282,1707190238463,-500.0,0.00024699,2]
[313345283,1707190238472,-500.0,0.00024699,2]
[313345284,1707190238482,-500.0,0.00024699,2]
[313345285,1707190238491,-500.0,0.00024699,2]
[313345286,1707190238500,-500.0,0.00024699,2]
[313345287,1707190238510,-500.0,0.00024699,2]
[313345288,1707190238519,-500.0,0.00024699,2]
[313345289,1707190238529,-500.0,0.00024699,2]
[313345290,1707190238538,-500.0,0.00024699,2]
[313345291,1707190238547,-500.0,0.00024699,2]
[313345292,1707190238556,-500.0,0.00024699,2]
[313345293,1707190238567,-500.0,0.00024699,2]
[313345294,1707190238576,-500.0,0.00024699,2]
[313345295,1707190238585,-500.0,0.00024699,2]
[313345296,1707190238595,-500.0,0.00024699,2]
[313345297,1707190238604,-500.0,0.00024699,2]
[313345298,1707190238613,-500.0,0.00024699,2]
[313345299,1707190238622,-500.0,0.00024699,2]
[313345300,1707190238633,-500.0,0.00024699,2]
[313345301,1707190238642,-500.0,0.00024699,2]
[313345302,1707190238651,-500.0,0.00024699,2]
[313345303,1707190238660,-500.0,0.00024699,2]
[313345304,1707190238671,-500.0,0.00024699,2]
[313345305,1707190238681,-500.0,0.00024699,2]
[313345306,1707190238690,-500.0,0.00024699,2]
[313345307,1707190238699,-500.0,0.00024699,2]
[313345308,1707190238711,-500.0,0.00024699,2]
[313345309,1707190238720,-500.0,0.00024699,2]
[313345310,1707190238729,-500.0,0.00024699,2]
[313345311,1707190238738,-500.0,0.00024699,2]
[313345312,1707190238748,-500.0,0.00024699,2]
[313345313,1707190238758,-500.0,0.00024699,2]
[313345314,1707190238768,-500.0,0.00024699,2]
[313345315,1707190238777,-324.676,0.00024699,2]
[313345316,1707190238786,-500.0,0.00024699,2]
[313345317,1707190238795,-500.0,0.00024699,2]
[313345318,1707190238804,-500.0,0.00024699,2]
[313345319,1707190238814,-500.0,0.00024699,2]
[313345320,1707190238824,-500.0,0.00024699,2]
[313345321,1707190238833,-500.0,0.00024699,2]
[313345322,1707190238843,-500.0,0.00024699,2]
[313345323,1707190238852,-500.0,0.00024699,2]
[313345324,1707190238862,-500.0,0.00024699,2]
[313345325,1707190238873,-500.0,0.00024699,2]
[313345326,1707190238882,-500.0,0.00024699,2]
[313345327,1707190238891,-500.0,0.00024699,2]
[313345328,1707190238900,-500.0,0.00024699,2]
[313345329,1707190238910,-500.0,0.00024699,2]
[313345330,1707190238919,-500.0,0.00024699,2]
[313345331,1707190238929,-500.0,0.00024699,2]
[313345332,1707190238939,-500.0,0.00024699,2]
[313345333,1707190238948,-86178.9712979,0.000247,2]
[313345342,1707190241438,-2778.08860548,0.000247,2]
[313345410,1707190243201,-43722.66744153,0.000247,2]
[313345411,1707190243212,-1000.0,0.000247,2]
[313345412,1707190243225,-1000.0,0.000247,2]
[313345413,1707190243236,-336.81741063,0.00024795,2]
[313345414,1707190243247,-7198.5381966,0.00024796,2]
[313345415,1707190243259,-304.64931634,0.00024796,2]
[313345416,1707190243271,-195.26035816,0.00024798,2]
[313345417,1707190243283,-155.9709458,0.00024798,2]
[313345418,1707190243295,-217.01598332,0.00024798,2]
[313345419,1707190243305,-2483.42897314,0.00024798,2]
[313345420,1707190243316,-3993.7962243,0.00024798,2]
[313345421,1707190243328,-175.97648506,0.00024798,2]
[313345422,1707190243338,-1034.266502,0.00024798,2]
[313345423,1707190243348,-646.23478647,0.00024798,2]
[313345424,1707190243358,-3252.59212443,0.00024799,2]
[313345425,1707190243369,-2098.22586442,0.00024799,2]
[313345426,1707190243380,-300.0,0.00024799,2]
[313345427,1707190243391,-6442.50774096,0.000249,2]
[313345428,1707190243402,-589.34919908,0.00024999,2]
[313345429,1707190243413,-310.03875547,0.00025,2]
[313345430,1707190243424,-3141.21618564,0.00025,2]
[313345431,1707190243436,-4544.25717771,0.00025,2]
[313345432,1707190243447,-4735.97820111,0.00025,2]
[313345433,1707190243458,-7402.65909098,0.00025,2]
[313345434,1707190243470,-534.91829573,0.00025,2]
[313345435,1707190243482,-171.739649,0.00025,3]
[313345436,1707190243492,-184.024594,0.00025036,2]
[313345437,1707190243502,-325.76422143,0.00025058,2]
[313345438,1707190243512,-1000.0,0.00025058,3]
[313345439,1707190243522,-1000.0,0.00025058,3]
[313345440,1707190243536,-216.49690572,0.00025058,2]
[313345441,1707190243547,-370.91178725,0.00025059,2]
[313345442,1707190243558,-288.05778695,0.00025061,2]
[313345443,1707190243570,-250.07968462,0.00025061,2]
[313345444,1707190243584,-283.3802451,0.00025064,2]
[313345445,1707190243595,-586.46184267,0.00025278,2]
[313345446,1707190243606,-1701.30850405,0.00025278,2]
[313345447,1707190243617,-12491.13275293,0.00025456,5]
[313345448,1707190243627,-200.0,0.00025479,2]
[313345449,1707190243642,-200.0,0.00025805,7]
[313345450,1707190243655,-620.03049264,0.00025837,2]
[313345451,1707190243666,-309.92404905,0.0002589,2]
[313345452,1707190243679,-151.0,0.00025924,2]
[313345453,1707190243691,-5000.0,0.00025948,2]
[313345454,1707190243704,-5000.0,0.0002595,2]
[313345455,1707190243717,-5000.0,0.00025954,2]
[313345456,1707190243730,-201.56969711,0.00026167,3]
[313345457,1707190243742,-443.80207433,0.00026597,2]
[313345458,1707190243754,-75404.34362608,0.000268,2]
[313345459,1707190243764,-157.681711,0.000268,2]
[313345460,1707190243776,-155.6778325,0.00026849,2]
[313345461,1707190243787,-153.0,0.00026849,2]
[313345462,1707190243796,-153.0,0.00026849,2]
[313345463,1707190243806,-1382.16421912,0.00027,2]
[313345464,1707190243817,-12026.56445011,0.00027,2]
[313345465,1707190243827,-742.20213402,0.00027029,2]
[313345466,1707190243837,-620.00152463,0.00027129,2]
[313345467,1707190243848,-151.0,0.00027149,2]
[313345468,1707190243859,-179.97810264,0.00027199,2]
[313345469,1707190243870,-4035.82532671,0.00027199,2]
[313345470,1707190243881,-201.46629708,0.00027396,2]
[313345471,1707190243893,-161.10807179,0.00027396,2]
[313345472,1707190243904,-163.13906839,0.00027396,2]
[313345473,1707190243914,-500.0,0.00027396,2]
[313345474,1707190243925,-500.0,0.00027396,2]
[313345475,1707190243936,-529.63896905,0.00027396,2]
[313345476,1707190243948,-282.3988648,0.00027396,2]
[313345477,1707190243958,-296.85024703,0.00027396,2]
[313345478,1707190243968,-500.0,0.00027396,2]
[313345479,1707190243978,-500.0,0.00027396,2]
[313345480,1707190243989,-650.83408535,0.00027396,2]
[313345481,1707190243999,-500.0,0.00027397,2]